Cogmind - Beta 13 @@@ ROGUE MODE // 2024.04.13 @ 18:24:21 Player: Copyrite Result: Self-destructed Performance ------------- Evolutions (2) 1000 Regions Visited (4) 800 Robots Destroyed (31) 155 Value Destroyed (866) 866 Prototype IDs (2) 40 Alien Tech Used (0) 0 Bonus (42) 42 TOTAL SCORE: 2903 Bonus ------- High Alert Combat Kills 42 Cogmind --------- Core Integrity 408/550 Matter 50/300 Energy 100/100 System Corruption 0% Temperature Cool (0) Movement Treading (170) Location -8/Materials Parts ------- > --- POWER (1) -------- (None) > --- PROPULSION (4) --- Armored Treads Armored Wheel Flight Unit > --- UTILITY (4) ------ Medium Storage Unit Signal Interpreter > --- WEAPON (2) ------- (None) > --- INVENTORY (10) --- Light Treads Large Storage Unit Visual Processing Unit Targeting Computer Improved Targeting Computer Mini Grenade Launcher Mining Laser Hammer Peak State ------------ > --- POWER ------------ Light Nuclear Core > --- PROPULSION ------- VTOL Module VTOL Module VTOL Module VTOL Module > --- UTILITY ---------- Small Storage Unit Signal Interpreter > --- WEAPON ----------- Mini Grenade Launcher Mini Grenade Launcher > --- INVENTORY -------- Light Ion Engine Large Storage Unit Targeting Computer Particle Gun [Rating: 17] Favorites ----------- Power Light Ion Engine Engine Light Ion Engine Power Core Light Nuclear Core Propulsion VTOL Module Treads Light Treads Wheel Armored Wheel Flight Unit VTOL Module Utility Signal Interpreter Storage Medium Storage Unit Processor Signal Interpreter Weapon Mini Grenade Launcher Energy Gun Particle Gun Ballistic Gun Assault Rifle Launcher Mini Grenade Launcher Special Weapon Mining Laser Build | -11 -10 -9 -9 -8 ------- Run | Yrd Mat Mat Min Mat Slots Evolved 4 | . . 2 . 2 Power . | . . . . . Propulsion 2 | . . 2 . . Utility 2 | . . . . 2 Weapon . | . . . . . Parts Attached 41 | 6 13 15 3 4 Power 7 | 1 3 2 . 1 Engine 4 | 1 2 1 . . Core 3 | . 1 1 . 1 Reactor . | . . . . . Propulsion 15 | 2 3 5 3 2 Treads 5 | 2 1 1 . 1 Leg . | . . . . . Wheel 1 | . . . . 1 Hover . | . . . . . Flight 9 | . 2 4 3 . Utility 5 | 1 3 1 . . Device . | . . . . . Storage 4 | 1 2 1 . . Processor 1 | . 1 . . . Hackware . | . . . . . Protection . | . . . . . Artifact . | . . . . . Weapon 14 | 2 4 7 . 1 Energy Gun 5 | . 3 1 . 1 Energy Cannon . | . . . . . Ballistic Gun 3 | 2 1 . . . Ballistic Cannon . | . . . . . Launcher 5 | . . 5 . . Special Weapon 1 | . . 1 . . Impact Weapon . | . . . . . Slashing Weapon . | . . . . . Piercing Weapon . | . . . . . Special Melee Weapon . | . . . . . Unidentified Prototypes . | . . . . . Parts Lost 13 | . . 6 2 5 Power 3 | . . 1 . 2 Propulsion 8 | . . 5 2 1 Utility . | . . . . . Weapon 2 | . . . . 2 Highest Loss Streak 5 | . . 5 2 3 To Critical Strikes . | . . . . . Average Slot Usage (%) 77 | . 75 83 87 52 Engine 9 | . 12 6 11 5 Core 1 | . . 4 . . Treads 6 | . 9 4 4 . Flight 22 | . 16 28 29 13 Storage 11 | . 14 11 11 9 Processor 10 | . 10 11 11 9 Ballistic Gun 3 | . 8 . . . Launcher 9 | . . 15 20 5 Naked Turns . | . . . . . Heaviest Build 29 | 14 29 16 15 18 Greatest Support 40 | 40 40 20 20 20 Greatest Overweight (x) 9 | . 9 3 1 1 Average Overweight (x) . | . . . . . Largest Inventory Capacity 15 | 8 15 10 10 10 Average Capacity 9 | 6 8 9 10 10 Most Carried 10 | 4 8 8 10 10 Average Carried 6 | 2 6 6 8 8 Final Capacity 10 | 8 8 10 10 10 Final Carried 10 | 4 8 7 10 8 Class Distribution -------------------- 52% | Mutant 47% | Sprinter Dominant Class ---------------- Sprinter | -10/Materials Mutant | -9/Materials Sprinter | -9/Mines Mutant | -8/Materials Resources | -11 -10 -9 -9 -8 ----------- Run | Yrd Mat Mat Min Mat Matter Collected 679 | 232 206 136 26 79 Remotely . | . . . . . Salvage Created 631 | . 172 305 31 123 Parts 46 | . 6 32 4 4 Haulers Intercepted . | . . . . . Recyclers Shooed . | . . . . . Parts Field Recycled . | . . . . . Retrieved Matter . | . . . . . Parts Self-Destructed . | . . . . . Prevented . | . . . . . Kills | -11 -10 -9 -9 -8 ------- Run | Yrd Mat Mat Min Mat Combat Hostiles Destroyed 32 | . 4 16 9 3 Guns 6 | . 4 1 . 1 AOE 26 | . . 15 9 2 Classes Destroyed 9 | . 1 7 1 . Worker 1 | . . 1 . . Builder 2 | . . 2 . . Tunneler 1 | . . 1 . . Watcher 1 | . . 1 . . Swarmer 9 | . . 6 3 . Grunt 12 | . 4 5 . 3 Brawler 1 | . . 1 . . Sentry 4 | . . 4 . . Assembled 6 | . . . 6 . Best Kill Streak 15 | . 2 15 6 2 Combat Bots Only 12 | . 2 12 6 2 Max Kills in Single Turn 6 | . 1 3 6 2 Gunslinging . | . . . . . Exploded 6 | . . 3 6 2 Melee . | . . . . . Uniques/NPCs Destroyed . | . . . . . Combat | -11 -10 -9 -9 -8 -------- Run | Yrd Mat Mat Min Mat Hostile Shots Fired 110 | . 16 47 11 36 Missed 40 | . 5 17 5 13 Damage Taken 1020 | . 126 371 111 412 Core 299 | . 22 115 20 142 Absorbed by Shields . | . . . . . Core Remaining (%) 85 | 100 91 . 66 . Volleys Fired 54 | . 18 23 2 11 Largest 2 | . 2 2 2 1 Hottest 100 | . 65 100 60 65 Shots Fired 74 | . 26 33 4 11 Gun 39 | . 26 5 . 8 Cannon . | . . . . . Launcher 34 | . . 27 4 3 Special 1 | . . 1 . . Kinetic 16 | . 16 . . . Thermal 24 | . 10 6 . 8 Explosive 34 | . . 27 4 3 Electromagnetic . | . . . . . Robot Hit Streak 18 | . 8 18 . 2 Robot Miss Streak 4 | . 1 . 1 4 Penetration Max . | . . . . . Secondary Targets . | . . . . . Shots Hit Robots 40 | . 20 15 . 5 Core Hits 58 | . 7 29 14 8 Critical Kills . | . . . . . Critical Parts Destroyed . | . . . . . Critical Strikes 3 | . . 2 . 1 Burn 3 | . . 2 . 1 Melee Attacks . | . . . . . Impact . | . . . . . Slashing . | . . . . . Piercing . | . . . . . Sneak Attacks . | . . . . . Combat Hostiles . | . . . . . Follow-up Attacks . | . . . . . Damage Inflicted 2674 | . 272 1555 576 271 Guns 416 | . 272 79 . 65 Cannons . | . . . . . Explosions 2250 | . . 1468 576 206 Melee . | . . . . . Ramming 8 | . . 8 . . Kinetic 163 | . 163 . . . Thermal 253 | . 109 79 . 65 Explosive 2250 | . . 1468 576 206 Electromagnetic . | . . . . . Impact . | . . . . . Slashing . | . . . . . Piercing . | . . . . . Highest Corruption . | . . . . . Average Corruption . | . . . . . Corruption Purged . | . . . . . Corruption Blocked . | . . . . . Overload Shots . | . . . . . Overflow Damage 75 | . . 75 . . Projectiles . | . . . . . Explosions 75 | . . 75 . . Melee . | . . . . . Knockbacks . | . . . . . Impact . | . . . . . Kinetic . | . . . . . Secondary . | . . . . . Self-Inflicted Damage 40 | . . 10 30 . Shots 2 | . . 1 1 . Rammed 1 | . . 1 . . Targets Rammed 1 | . . 1 . . Kicked . | . . . . . Crushed . | . . . . . Highest Temperature 192 | . 106 192 7 70 Average Temperature 41 | . 34 48 6 40 Received Heat Transfer 423 | . 69 123 24 207 Siege Activations . | . . . . . Robots Corrupted . | . . . . . Combat Hostiles . | . . . . . Parts Fried . | . . . . . Impact Corruptions . | . . . . . Robots Melted . | . . . . . Combat Hostiles . | . . . . . Parts Melted 1 | . . 1 . . Heat Transferred 814 | . 259 333 . 222 Parts Sabotaged . | . . . . . Parts Stolen . | . . . . . Parts Stripped . | . . . . . Power Chain Reactions . | . . . . . Alert | -11 -10 -9 -9 -8 ------- Run | Yrd Mat Mat Min Mat Peak Influence 669 | . 229 669 318 196 Initial 182 | . . 11 182 115 Average 209 | . 92 377 286 128 Maximum Alert Level 2 | . 1 2 1 . Low Security (%) 66 | 100 94 44 . 100 Level 1 17 | . 5 5 100 . Level 2 16 | . . 49 . . Level 3 . | . . . . . Level 4 . | . . . . . Level 5 . | . . . . . High Security . | . . . . . Max Security . | . . . . . Squads Dispatched 3 | . . 1 . 2 Investigation . | . . . . . Extermination . | . . . . . Reinforcement 3 | . . 1 . 2 Assault . | . . . . . Garrison . | . . . . . Intercept . | . . . . . Searches Triggered . | . . . . . Construction Impeded 2 | . . 1 . 1 Haulers Reinforced . | . . . . . Active Scanning Responses . | . . . . . Cargo Convoy Interrupts . | . . . . . Stealth | -11 -10 -9 -9 -8 --------- Run | Yrd Mat Mat Min Mat Distress Signals 5 | . 2 . . 3 Communications Jammed . | . . . . . Distress Signals . | . . . . . Times Spotted 62 | . 11 23 16 12 Peak Tracking Total 13 | . 5 7 13 8 Tactical Retreats 6 | . 3 1 2 . Traps | -11 -10 -9 -9 -8 ------- Run | Yrd Mat Mat Min Mat Traps Triggered 3 | . 3 . . . Indirectly . | . . . . . Trap Hack Attempts . | . . . . . Triggered . | . . . . . Disarmed . | . . . . . Reprogrammed . | . . . . . Reused . | . . . . . Traps Extracted . | . . . . . Installed . | . . . . . Triggered . | . . . . . Machines | -11 -10 -9 -9 -8 ---------- Run | Yrd Mat Mat Min Mat Machines Disabled 5 | . . 4 1 . Max in Single Turn 1 | . . 1 1 . Machines Repaired . | . . . . . Machines Dismantled . | . . . . . Machines Sabotaged . | . . . . . Overloaded Fab Kills . | . . . . . Hacking | -11 -10 -9 -9 -8 --------- Run | Yrd Mat Mat Min Mat Machines Accessed 8 | . 5 2 . 1 Terminals 8 | . 5 2 . 1 Fabricators . | . . . . . Repair Stations . | . . . . . Recycling Units . | . . . . . Scanalyzers . | . . . . . Garrison Access . | . . . . . Total Hacks 25 | . 17 6 . 2 Successful 15 | . 8 6 . 1 Failed 10 | . 9 . . 1 Catastrophic 3 | . 3 . . . Database Lockouts . | . . . . . Manual 25 | . 18 5 . 2 Terminals 25 | . 17 6 . 2 Fabricators . | . . . . . Repair Stations . | . . . . . Recycling Units . | . . . . . Scanalyzers . | . . . . . Garrison Access . | . . . . . Terminal Hacks 6 | . 4 1 . 1 Prototype ID Bank 1 | . 1 . . . Branch Access Points 1 | . . 1 . . Alert Level 1 | . 1 . . . Unreport Threat 1 | . . . . 1 Locate Traps 1 | . 1 . . . Zone Layout 1 | . 1 . . . Fabricator Hacks . | . . . . . Repair Station Hacks . | . . . . . Recycling Unit Hacks . | . . . . . Scanalyzer . | . . . . . Garrison Access Hacks . | . . . . . Unauthorized Hacks 9 | . 4 5 . . Terminals 9 | . 4 5 . . Assimilate 3 | . 1 2 . . Botnet 4 | . 2 2 . . Operators 2 | . 1 1 . . Fabricators . | . . . . . Repair Stations . | . . . . . Recycling Units . | . . . . . Scanalyzers . | . . . . . Garrison Access . | . . . . . Data Cores Recovered . | . . . . . Used . | . . . . . Hacking Detections 9 | . 6 2 . 1 Full Trace Events . | . . . . . Feedback Events . | . . . . . Feedback Blocked . | . . . . . Robot Schematics Acquired . | . . . . . Robots Built . | . . . . . Authchips . | . . . . . Time . | . . . . . Total Robot Build Rating . | . . . . . Part Schematics Acquired . | . . . . . Parts Built . | . . . . . Authchips . | . . . . . Time . | . . . . . Total Part Build Rating . | . . . . . Parts Repaired . | . . . . . Time . | . . . . . Parts Recycled . | . . . . . Recycled Matter . | . . . . . Retrieved Matter . | . . . . . Retrieved Components . | . . . . . Parts Scanalyzed . | . . . . . Part Schematics Acquired . | . . . . . Parts Damaged . | . . . . . Bothacking | -11 -10 -9 -9 -8 ------------ Run | Yrd Mat Mat Min Mat Used RIF Installer . | . . . . . Robots Hacked . | . . . . . Non-combat . | . . . . . Combat . | . . . . . Robot Hacks Applied . | . . . . . Relay Couplers Released . | . . . . . Fabnet Peak Effective % . | . . . . . Robots Rewired . | . . . . . Allies Hacked . | . . . . . Hacks Repelled . | . . . . . Allies | -11 -10 -9 -9 -8 -------- Run | Yrd Mat Mat Min Mat Total Allies 2 | . 1 1 . . Largest Group 2 | . 1 2 . . Highest-Rated Group 20 | . 10 20 . . Highest-Rated Ally 10 | . 10 10 . . Total Orders . | . . . . . Ally Attacks . | . . . . . Total Damage . | . . . . . Kills . | . . . . . Allies Corrupted . | . . . . . Allies Melted . | . . . . . Intel | -11 -10 -9 -9 -8 ------- Run | Yrd Mat Mat Min Mat Robot Analysis Total . | . . . . . Derelict Logs Recovered 1 | . . . 1 . Drone Launches . | . . . . . Drone Recoveries . | . . . . . Exploration | -11 -10 -9 -9 -8 ------------- Run | Yrd Mat Mat Min Mat Turns Passed 1237 | 92 440 410 164 131 Spaces Moved 1233 | 52 437 425 235 84 Core 5 | 4 1 . . . Treads 270 | 48 71 107 36 8 Legs . | . . . . . Wheels 48 | . . . . 48 Hover . | . . . . . Flight 910 | . 365 318 199 28 Fastest Speed 26 | 50 32 26 29 90 Average Speed 65 | 151 54 62 55 114 Slowest Speed 500 | 160 500 280 160 170 Overloaded Moves . | . . . . . Propulsion Burnouts . | . . . . . Robots Hopped 10 | . 2 7 1 . Cave-ins Triggered . | . . . . . Exploration Rate (%) 35 | 3 71 42 50 9 Regions Visited 4 Branch Regions 1 Pre-discovered Areas . | . . . . . Known Exits Taken 3 | . 1 1 1 . Unknown Exits Taken 1 | 1 . . . . Scrap Searched 1 | . . . 1 . Spaces Dug 1 | . . 1 . . Terrain Destroyed 256 | . . 198 35 23 Melee . | . . . . . Projectile 1 | . . 1 . . AOE 255 | . . 197 35 23 Terrain Rammed . | . . . . . Walls Destroyed . | . . . . . Machines Disabled . | . . . . . Actions | -11 -10 -9 -9 -8 --------- Run | Yrd Mat Mat Min Mat Total 1568 | 63 610 525 264 106 Wait 213 | . 125 62 19 7 Move 1209 | 51 432 410 232 84 Hop 10 | . 2 7 1 . Pick Up 24 | 5 10 4 5 . Fast Attach 17 | 6 6 3 . 2 Attach 16 | . 4 7 3 2 Detach 6 | . 3 2 1 . Swap 8 | . 3 5 . . Drop 10 | 1 7 1 1 . Fire 54 | . 18 23 2 11 Melee . | . . . . . Ram . | . . . . . Kick . | . . . . . Crush 1 | . . 1 . . Escape Stasis . | . . . . . Rewire . | . . . . . Trap . | . . . . . Miscellaneous . | . . . . . Route ------- -11/Scrapyard -10/Materials (discovered 3 exits: *Mat x2 / *Min) -9/Materials (discovered 2 exits: *Min x2) -9/Mines -8/Materials (discovered 2 exits: Fac x2) History --------- Turn | Location | Event 17 | -11/Scrapyard | Discovered new exit (range 16) 93 | -11/Scrapyard | Entered Materials 224 | -10/Materials | Discovered new exit (range 10) 278 | -10/Materials | Identified exit to Materials 303 | -10/Materials | Discovered exit to Materials (range 13) 484 | -10/Materials | Discovered new exit (range 9) 486 | -10/Materials | Identified exit to Mines 515 | -10/Materials | Build established: Sprinter 533 | -10/Materials | Entered another Materials area 533 | -9/Materials | Accompanied by 1 ally 533 | -9/Materials | Evolved 2 slots: Propulsion x2 606 | -9/Materials | Discovered new exit (range 12) 647 | -9/Materials | Identified exit to Mines 780 | -9/Materials | Destroyed 12 combat bots 783 | -9/Materials | Lost 5 parts (1p4n) 943 | -9/Materials | Entered Mines 965 | -9/Mines | Learned 2 Materials zone layouts 995 | -9/Mines | Build established: Mutant 1027 | -9/Mines | Assembled infested the area 1062 | -9/Mines | Discovered new exit (range 12) 1106 | -9/Mines | Identified exit to Materials 1107 | -9/Mines | Entered Materials 1107 | -8/Materials | Evolved 2 slots: Utility x2 1108 | -8/Materials | Identified exit to Factory 1218 | -8/Materials | Lost 3 parts (1p1n1w) 1238 | -8/Materials | Self-destructed Last Messages --------------- Lgt. Nuclear Core destroyed. Acquired Arm. Treads. ALERT: Hostiles spotted, dispatching reinforcements to Terminal M002. U-05 Engineer builds a Wall. K-01 Serf collects debris. U-05 Engineer builds a Wall. Connecting with Terminal... >>Alert(Purge) Purged threat record, alert level lowered. U-05 Engineer builds a Wall. U-05 Engineer destroyed. W-25 Informer sends out distress signal. U-05 Engineer lays Concrete. K-01 Serf collects debris. U-05 Engineer lays Concrete. K-01 Serf collects debris. U-05 Engineer lays Concrete. Particle Gun destroyed. U-05 Engineer lays Concrete. Map ----- +----------------------------------------------------+ | | | | | | | | | | | | | | | | | | | | | | | ?????????????????????????????????????????????????? | | ?????????????????????????????????????????????????? | | ?????????????????????????????????????????????????? | | ????????#######?????###########??????????????????? | | ?######## #?????# #??????????????????? | | ?# #?????# #??????????????????? | | ?# #?????# #??????????????????? | | ?# #?????# #??????????????????? | | ?######## #?????# #??????????????????? | | ??######## ##?????# #??????????????????? | | ??# # #??????# #??????????????????? | | ??# # #??????# ! #??????????????????? | | ??# + #??????## !#+### #########+###??????? | | ??# # #???????##==%[ ???? | | ??# # ###########!@ u k ???? | | ??# ! ?# # gg l Y ""?????? | | ??######?# # """"" ## #g ######## ""?????? | | ?????????# # """"" ## # T ##??? ""?????? | | ?????????# # """"" ## # """ #???????????? | | ?????????# + """"" ## # """ ##???????????? | | ?????????# # """"" ## g# """ #????????????? | | ?????????# # """"" + g # #????????????? | | ?????????# # """"" ## # ! """ #????????????? | | ?????????# # ## w# """ #????????????? | | ?????????# ########### # """ #????????????? | | ?????????# #?????????# # #????????????? | | ?????????# #?????????# ###/#####?????????????? | | ????????? ?????????? ?? ?????????????????? | | ????????? ?????????? ? ?????????????????? | | ????????? ?????????? ?????????????????? | | ???????? ####??????????+###### ????????????????? | | ???????? ????????????????????? ????????????????? | | ?????????????????????????????? ????????????????? | | ?????????????????????????????? ????????????????? | | ??????????????????????????????? ?????????????????? | | ?????????????????????????????????????????????????? | | ?????????????????????????????????????????????????? | | ?????????????????????????????????????????????????? | | ?????????????????????????????????????????????????? | +----------------------------------------------------+ Best States ------------- Heat Dissipation 31 Energy Generation 14 Energy Capacity 250 Matter Stores 300 Matter Capacity 300 Sight Range 16 Terrain Scan Density 10 Evasion (%) 64 Recoil Reduction 2 Item Schematics ----------------- None Robot Schematics ------------------ None Fabricated ------------ Nothing Alien Tech Used ----------------- None Achievements -------------- Quick And Dirty Challenges ------------ None Game ------ Seed SeismicMappingSegregator Manual? 0 Play Time 00:27:56 Cumulative 23.3 hours Start 2024.04.13 @ 17:41:39 End 2024.04.13 @ 18:24:21 Sessions 1 Manual Loads 0 Difficulty Rogue Special Mode None Game No. 45 Rogue 45 Adventurer 0 Explorer 0 Win Type - Total 0 Types 0/0/0/0/0/0/0/0/0 Lore% 18 Gallery% 25 Achievement% 26 Wizard Run 0 Options --------- Layout 1 ASCII 0 Keyboard 0 Movement Numpad Keybinds 0 Fullscreen 1 Font 32/SmallcapsGlow Map View 50x35 Zoom Use 0% Tactical HUD 0 Map Filters NONE Filters NONE Steam 1 RUN: b65b7b38-9bc1-4f11-8f23-9e4f7c477510